Cogmind - Beta 14 @@@ ROGUE MODE // 2024.12.12 @ 22:25:44 Player: 5taquitos Result: Destroyed by Y-45 Defender with Heavy Assault Rifle Performance ------------- Evolutions (1) 500 Regions Visited (2) 400 Robots Destroyed (13) 65 Value Destroyed (246) 246 Prototype IDs (0) 0 Alien Tech Used (0) 0 Bonus (0) 0 TOTAL SCORE: 1211 Bonus ------- None Cogmind --------- Core Integrity 0/400 Matter 176/300 Energy 55/100 System Corruption 0% Temperature Warm (133) Movement Core (250) Ox4 Location -9/Materials Parts ------- > --- POWER (2) -------- (None) > --- PROPULSION (3) --- (None) > --- UTILITY (2) ------ Medium Storage Unit Improved Targeting Computer > --- WEAPON (2) ------- Medium Laser Beam Cannon > --- INVENTORY (10) --- Aluminum Leg Aluminum Leg Small Storage Unit Huge Storage Unit Beam Cannon Assault Rifle Heavy Assault Rifle Heavy Assault Rifle Peak State ------------ > --- POWER ------------ Ion Engine Light Ion Engine > --- PROPULSION ------- Wheel Wheel Armored Wheel > --- UTILITY ---------- Medium Storage Unit Improved Targeting Computer > --- WEAPON ----------- Heavy Assault Rifle Heavy Assault Rifle > --- INVENTORY -------- Aluminum Leg Aluminum Leg Small Storage Unit Huge Storage Unit Medium Laser Beam Cannon Beam Cannon Assault Rifle Heavy Assault Rifle Heavy Assault Rifle [Rating: 14] Favorites ----------- Power Ion Engine Engine Ion Engine Propulsion Wheel Treads Light Treads Wheel Wheel Utility Improved Targeting Computer Storage Small Storage Unit Processor Improved Targeting Computer Weapon Heavy Assault Rifle Energy Gun Medium Laser Energy Cannon Beam Cannon Ballistic Gun Heavy Assault Rifle Build | -11 -10 -9 ------- Run | Yrd Mat Mat Slots Evolved 2 | . . 2 Power 1 | . . 1 Propulsion 1 | . . 1 Utility . | . . . Weapon . | . . . Parts Attached 29 | 10 9 10 Power 2 | 1 . 1 Engine 2 | 1 . 1 Core . | . . . Reactor . | . . . Propulsion 12 | 6 4 2 Treads 1 | 1 . . Leg . | . . . Wheel 11 | 5 4 2 Hover . | . . . Flight . | . . . Utility 5 | 1 3 1 Device . | . . . Storage 4 | 1 2 1 Processor 1 | . 1 . Hackware . | . . . Protection . | . . . Artifact . | . . . Weapon 10 | 2 2 6 Energy Gun 1 | . . 1 Energy Cannon 3 | . . 3 Ballistic Gun 6 | 2 2 2 Ballistic Cannon . | . . . Launcher . | . . . Special Weapon . | . . . Impact Weapon . | . . . Slashing Weapon . | . . . Piercing Weapon . | . . . Special Melee Weapon . | . . . Unidentified Prototypes . | . . . Parts Lost 8 | . 1 7 Power 2 | . . 2 Propulsion 4 | . 1 3 Utility . | . . . Weapon 2 | . . 2 Highest Loss Streak 4 | . 1 4 To Critical Strikes . | . . . Average Slot Usage (%) 90 | . 90 90 Engine 15 | . 14 17 Wheel 27 | . 26 28 Storage 12 | . 14 11 Processor 9 | . 7 11 Energy Cannon 1 | . . 2 Ballistic Gun 23 | . 28 19 Peak Build Rating 14 | 6 11 14 Average Rating 9 | 4 8 12 On Entrance 5 | . 6 11 Naked Turns . | . . . Heaviest Build 91 | 14 91 24 Greatest Support 32 | 32 32 32 Greatest Overweight (x) 4 | . 4 1 Average Overweight (x) . | . . . Largest Inventory Capacity 25 | 8 25 10 Average Capacity 9 | 7 9 9 Most Carried 11 | 8 11 10 Average Carried 8 | 4 7 9 Final Capacity 10 | 8 8 10 Final Carried 8 | 8 8 8 Class Distribution -------------------- 100% | Mutant Dominant Class ---------------- Mutant | -10/Materials Mutant | -9/Materials Resources | -11 -10 -9 ----------- Run | Yrd Mat Mat Matter Collected 603 | 302 158 143 Remotely . | . . . Salvage Created 451 | 67 158 226 Parts 28 | 3 6 19 Haulers Intercepted . | . . . Recyclers Shooed . | . . . Parts Field Recycled . | . . . Retrieved Matter . | . . . Parts Self-Destructed . | . . . Prevented . | . . . Kills | -11 -10 -9 ------- Run | Yrd Mat Mat Combat Hostiles Destroyed 7 | . 2 5 Guns 6 | . 2 4 Cannons 1 | . . 1 Classes Destroyed 7 | 1 3 3 Worker 2 | . 1 1 Builder 1 | . 1 . Recycler 1 | 1 . . Watcher 2 | . . 2 Swarmer 3 | . . 3 Grunt 2 | . 2 . Sentry 2 | . . 2 Best Kill Streak 3 | 1 3 3 Combat Bots Only 3 | . 2 3 Max Kills in Single Turn 1 | 1 1 1 Gunslinging . | . . . Exploded . | . . . Melee . | . . . Uniques/NPCs Destroyed . | . . . Combat | -11 -10 -9 -------- Run | Yrd Mat Mat Hostile Shots Fired 158 | . 25 133 Missed 53 | . 6 47 Damage Taken 1443 | . 267 1176 Core 441 | . 28 413 Absorbed by Shields . | . . . Core Remaining (%) 94 | 100 88 . Volleys Fired 57 | 2 16 39 Largest 2 | 2 2 2 Hottest 120 | 40 46 120 Shots Fired 111 | 4 32 75 Gun 97 | 4 32 61 Cannon 14 | . . 14 Launcher . | . . . Special . | . . . Kinetic 95 | 4 32 59 Thermal 16 | . . 16 Explosive . | . . . Electromagnetic . | . . . Robot Hit Streak 8 | 2 4 8 Robot Miss Streak 4 | 1 2 4 Penetration Max . | . . . Secondary Targets . | . . . Shots Hit Robots 63 | 3 15 45 Core Hits 22 | 2 6 14 Critical Kills . | . . . Critical Parts Destroyed 1 | . 1 . Critical Strikes 1 | . 1 . Destroy 1 | . 1 . Melee Attacks . | . . . Impact . | . . . Slashing . | . . . Piercing . | . . . Sneak Attacks . | . . . Combat Hostiles . | . . . Follow-up Attacks . | . . . Damage Inflicted 1007 | 33 275 699 Guns 801 | 33 255 513 Cannons 175 | . . 175 Explosions . | . . . Melee . | . . . Ramming 31 | . 20 11 Kinetic 788 | 33 255 500 Thermal 188 | . . 188 Explosive . | . . . Electromagnetic . | . . . Impact . | . . . Slashing . | . . . Piercing . | . . . Highest Corruption . | . . . Average Corruption . | . . . Corruption Purged . | . . . Corruption Blocked . | . . . Overload Shots . | . . . Overflow Damage . | . . . Projectiles . | . . . Explosions . | . . . Melee . | . . . Knockbacks . | . . . Impact . | . . . Kinetic . | . . . Secondary . | . . . Self-Inflicted Damage 15 | . 10 5 Shots . | . . . Rammed 2 | . 1 1 Targets Rammed 2 | . 1 1 Kicked . | . . . Crushed . | . . . Highest Temperature 360 | . 9 360 Average Temperature 172 | . 3 200 Received Heat Transfer 678 | . 144 534 Siege Activations . | . . . Robots Corrupted . | . . . Combat Hostiles . | . . . Parts Fried . | . . . Impact Corruptions . | . . . Robots Melted . | . . . Combat Hostiles . | . . . Parts Melted 1 | . . 1 Heat Transferred 407 | . . 407 Parts Sabotaged . | . . . Parts Stolen . | . . . Parts Stripped . | . . . Power Chain Reactions . | . . . Alert | -11 -10 -9 ------- Run | Yrd Mat Mat Peak Influence 224 | 5 53 224 Initial 22 | . 3 22 Average 70 | 3 24 128 Maximum Alert Level 1 | . . 1 Low Security (%) 94 | 100 100 88 Level 1 5 | . . 11 Level 2 . | . . . Level 3 . | . . . Level 4 . | . . . Level 5 . | . . . High Security . | . . . Max Security . | . . . Squads Dispatched 4 | . 1 3 Investigation 3 | . 1 2 Extermination . | . . . Reinforcement 1 | . . 1 Assault . | . . . Garrison . | . . . Intercept . | . . . Searches Triggered . | . . . Construction Impeded . | . . . Haulers Reinforced . | . . . Active Scanning Responses . | . . . Cargo Convoy Interrupts . | . . . Stealth | -11 -10 -9 --------- Run | Yrd Mat Mat Distress Signals 1 | . . 1 Communications Jammed . | . . . Distress Signals . | . . . Times Spotted 26 | . 7 19 Peak Tracking Total 6 | . 3 6 Tactical Retreats 2 | . . 2 Traps | -11 -10 -9 ------- Run | Yrd Mat Mat Traps Triggered 1 | . 1 . Indirectly . | . . . Trap Hack Attempts . | . . . Triggered . | . . . Disarmed . | . . . Reprogrammed . | . . . Reused . | . . . Traps Extracted . | . . . Installed . | . . . Triggered . | . . . Machines | -11 -10 -9 ---------- Run | Yrd Mat Mat Machines Disabled . | . . . Max in Single Turn . | . . . Machines Repaired . | . . . Machines Dismantled . | . . . Machines Sabotaged . | . . . Overloaded Fab Kills . | . . . Hacking | -11 -10 -9 --------- Run | Yrd Mat Mat Machines Accessed 2 | . . 2 Terminals 2 | . . 2 Fabricators . | . . . Repair Stations . | . . . Recycling Units . | . . . Scanalyzers . | . . . Garrison Access . | . . . Total Hacks 9 | . . 9 Successful 7 | . . 7 Failed 2 | . . 2 Catastrophic 1 | . . 1 Database Lockouts . | . . . Manual . | . . . Terminals 9 | . . 9 Fabricators . | . . . Repair Stations . | . . . Recycling Units . | . . . Scanalyzers . | . . . Garrison Access . | . . . Terminal Hacks 7 | . . 7 Record 4 | . . 4 Investigation Status 1 | . . 1 Recall Investigation 1 | . . 1 Recall Reinforcements 1 | . . 1 Fabricator Hacks . | . . . Repair Station Hacks . | . . . Recycling Unit Hacks . | . . . Scanalyzer . | . . . Garrison Access Hacks . | . . . Unauthorized Hacks . | . . . Terminals . | . . . Fabricators . | . . . Repair Stations . | . . . Recycling Units . | . . . Scanalyzers . | . . . Garrison Access . | . . . Data Cores Recovered . | . . . Used . | . . . Hacking Detections 2 | . . 2 Full Trace Events 2 | . . 2 Feedback Events . | . . . Feedback Blocked . | . . . Robot Schematics Acquired . | . . . Robots Built . | . . . Authchips . | . . . Time . | . . . Total Robot Build Rating . | . . . Part Schematics Acquired . | . . . Parts Built . | . . . Authchips . | . . . Time . | . . . Total Part Build Rating . | . . . Parts Repaired . | . . . Time . | . . . Parts Recycled . | . . . Recycled Matter . | . . . Retrieved Matter . | . . . Retrieved Components . | . . . Parts Scanalyzed . | . . . Part Schematics Acquired . | . . . Parts Damaged . | . . . Bothacking | -11 -10 -9 ------------ Run | Yrd Mat Mat Used RIF Installer . | . . . Robots Hacked . | . . . Non-combat . | . . . Combat . | . . . Robot Hacks Applied . | . . . Relay Couplers Released . | . . . Fabnet Peak Effective % . | . . . Robots Rewired . | . . . Allies Hacked . | . . . Hacks Repelled . | . . . Allies | -11 -10 -9 -------- Run | Yrd Mat Mat Total Allies . | . . . Largest Group . | . . . Highest-Rated Group . | . . . Highest-Rated Ally . | . . . Total Orders . | . . . Ally Attacks . | . . . Total Damage . | . . . Kills . | . . . Allies Corrupted . | . . . Allies Melted . | . . . Intel | -11 -10 -9 ------- Run | Yrd Mat Mat Robot Analysis Total . | . . . Derelict Logs Recovered . | . . . Drone Launches . | . . . Drone Recoveries . | . . . Exploration | -11 -10 -9 ------------- Run | Yrd Mat Mat Turns Passed 824 | 79 361 384 Spaces Moved 667 | 45 319 303 Core 10 | 10 . . Treads 12 | 12 . . Legs . | . . . Wheels 645 | 23 319 303 Hover . | . . . Flight . | . . . Fastest Speed 50 | 50 80 80 Average Speed 88 | 104 91 83 Slowest Speed 160 | 160 140 105 Overloaded Moves . | . . . Propulsion Burnouts . | . . . Robots Hopped . | . . . Cave-ins Triggered . | . . . Exploration Rate (%) 25 | 3 40 32 Regions Visited 2 Branch Regions . Pre-discovered Areas . | . . . Known Exits Taken . | . . . Unknown Exits Taken 2 | 1 1 . Scrap Searched . | . . . Spaces Dug . | . . . Terrain Destroyed . | . . . Melee . | . . . Projectile . | . . . AOE . | . . . Terrain Rammed . | . . . Walls Destroyed . | . . . Machines Disabled . | . . . Actions | -11 -10 -9 --------- Run | Yrd Mat Mat Total 781 | 71 353 357 Wait . | . . . Move 665 | 44 318 303 Hop . | . . . Pick Up 19 | 14 3 2 Fast Attach 5 | . 3 2 Attach 9 | 7 . 2 Detach 2 | 1 1 . Swap 15 | 3 6 6 Drop 7 | . 5 2 Fire 57 | 2 16 39 Melee . | . . . Ram 2 | . 1 1 Kick . | . . . Crush . | . . . Escape Stasis . | . . . Rewire . | . . . Trap . | . . . Miscellaneous . | . . . Route ------- -11/Scrapyard -10/Materials -9/Materials History --------- Turn | Location | Event 9 | -11/Scrapyard | Discovered new exit (range 16) 80 | -11/Scrapyard | Entered Materials 211 | -10/Materials | Discovered new exit (range 14) 308 | -10/Materials | Build established: Mutant 441 | -10/Materials | Entered another Materials area 441 | -9/Materials | Evolved 2 slots: Power x1, Propulsion x1 780 | -9/Materials | Core integrity fell below 50% 804 | -9/Materials | Lost 3 parts (1p2n) 813 | -9/Materials | Core integrity fell below 20% 825 | -9/Materials | Destroyed by Y-45 Defender with Heavy Assault Rifle Last Messages --------------- 00746_ Wheel destroyed. 00748_ T-07 Excavator is excavating. 00766_ Beam Rifle melted. 00766_ Y-45 Defender destroyed. 00769_ Wheel destroyed. 00773_ Ion Engine destroyed. 00776_ U-05 Engineer lays Concrete. 00778_ T-07 Excavator is excavating. 00787_ U-05 Engineer lays Concrete. 00802_ K-01 Serf collects debris. 00804_ Lgt. Ion Engine destroyed. 00806_ K-01 Serf collects debris. 00808_ Critical hit (Burn: +37). 00810_ Hvy. Assault Rifle destroyed. 00811_ K-01 Serf collects debris. 00816_ Critical hit (Burn: +37). 00816_ Hvy. Assault Rifle destroyed. 00819_ K-01 Serf collects debris. 00819_ K-01 Serf destroyed. 00824_ Arm. Wheel destroyed. Map ----- +----------------------------------------------------+ | ?????????????????????????????????????????????????? | | ?????????????????????????????????????????????????? | | ?????????????????????????????????????????????????? | | ?????????????????????????????????????????????????? | | ?????????????????????????????????????????????????? | | ?????????????????????????????????????????????????? | | ?????????????????????????????????????????????????? | | ?????????????????????????????????????????????????? | | ?????????????????????????????????????????????????? | | ?????????????????????????????????????????????????? | | ?????????????????????????????????????????????????? | | ?????????????????????????????????????????????????? | | ?????????????????????????????????????????????????? | | ?????????????????????????????????????????????????? | | ?????????????????????????????????????????????????? | | ?????????????????????????????????????????????????? | | ?????????????????????????????????????????????????? | | ?????????????????????????????????????????????????? | | ?????????????????????????????????????????????????? | | ?????????????????????????????????????????????????? | | ?????????????????????????????????????????????????? | | ?????????????????????????????????????????????????? | | ?????????????????????###########?????????????????? | | ?????????????????????# #?????????????????? | | ?????????????????????# #?????????????????? | | ?????????????????????# @ #?######??????????? | | ?????????????????????# # #??????????? | | ?????????????????????# Y #??????????? | | ?????????????????????# %g# #??????????? | | ?????????????????????# #?? #??????????? | | ?????????????????????# [ #????? #??????????? | | ?????????????????????#######g###?????????????????? | | ?????????????????????????# u! ###+#######???????? | | ?????????????????????????# ??????? | | ?????????????????????????# ??????? | | ?????????????????????????# ??????? | | ?????????????????????????# [ ### ########??????? | | ?????????????????????????## ##??? ????????????? | | ??????????????????????????# #????? #???????????? | | ??????????????????????????# #??????#?######????? | | ??????????????????????????# #????????# #????? | | ??????????????????????????# #????????# #????? | | ????????????? ##### #????????# #????? | | ????????????? ! / #????????# #????? | | ?????????????[ ######+######????# #????? | | ?????????##########???# T #????# ###### | | ?????????# #???# #????# + + | | ?????????# #??# #????# # # | | ?????????# #??## """ """ #????# # # | | ?????????# / #???# """ """ ########+## # | +----------------------------------------------------+ Best States ------------- Heat Dissipation 28 Energy Generation 15 Energy Capacity 275 Matter Stores 293 Matter Capacity 300 Sight Range 16 Terrain Scan Density 10 Evasion (%) 50 Targeting Accuracy 6 Recoil Reduction 1 Item Schematics ----------------- None Robot Schematics ------------------ None Fabricated ------------ Nothing Alien Tech Used ----------------- None Achievements -------------- None Challenges ------------ None Game ------ Seed HybridStasisArray Manual? 0 Play Time 00:23:49 Cumulative 16.6 hours Start 2024.12.12 @ 22:00:45 End 2024.12.12 @ 22:25:44 Sessions 1 Manual Loads 0 Difficulty Rogue Special Mode None Game No. 23 Rogue 23 Adventurer 0 Explorer 0 Win Type - Total 0 Types 0/0/0/0/0/0/0/0/0 Lore% 12 Gallery% 20 Achievement% 22 Wizard Run 0 Options --------- Layout 1 ASCII 0 Keyboard 0 Movement Mouse Keybinds 0 Fullscreen 1 Font 16/SmallcapsGlow Map View 55x38 Zoom Use 0% Tactical HUD 1 Map Filters NONE Filters NONE Steam 1 RUN: 453e1129-5124-4812-aa64-5938bff1cea2